Cogmind - Beta 15 @@@ ROGUE MODE // 2025.05.18 @ 20:37:01 Player: gorb Result: Destroyed self with Mini Grenade Launcher Performance ------------- Evolutions (1) 500 Regions Visited (3) 600 Robots Destroyed (64) 320 Value Destroyed (1619) 1619 Prototype IDs (1) 20 Alien Tech Used (0) 0 Bonus (85) 85 TOTAL SCORE: 3144 Bonus ------- High Alert Combat Kills 43 Follower Combat Kills 83 Friendly Fire -41 Cogmind --------- Core Integrity 0/400 Matter 223/300 Energy 100/100 System Corruption 2% Temperature Cool (6) Movement Walking (120) Location -9/Storage Parts ------- > --- POWER (1) -------- (None) > --- PROPULSION (4) --- Aluminum Leg > --- UTILITY (2) ------ Visual Processing Unit > --- WEAPON (2) ------- Mini Grenade Launcher > --- INVENTORY (5) ---- Ion Engine Improved Aluminum Leg Light Armor Plating Beam Rifle Grenade Launcher Peak State ------------ > --- POWER ------------ Improved Ion Engine > --- PROPULSION ------- Aluminum Leg Aluminum Leg Aluminum Leg Carbon-fiber Leg > --- UTILITY ---------- Small Storage Unit Visual Processing Unit > --- WEAPON ----------- Beam Rifle Mini Grenade Launcher > --- INVENTORY -------- Ion Engine Improved Aluminum Leg Signal Interpreter Light Armor Plating Beam Rifle Grenade Launcher Grenade Launcher Mining Laser [Rating: 16] Favorites ----------- Power Ion Engine Engine Ion Engine Propulsion Aluminum Leg Leg Aluminum Leg Wheel Wheel Flight Unit Improved Flight Unit Utility Small Storage Unit Device ECM Suite Storage Small Storage Unit Processor Visual Processing Unit Protection Light Armor Plating Weapon Small Laser Energy Gun Small Laser Ballistic Gun Heavy Assault Rifle Ballistic Cannon Light Cannon Launcher Mini Grenade Launcher Special Weapon Mining Laser Build | -11 -10 -9 -9 ------- Run | Yrd Mat Mat Sto Slots Evolved 2 | . . 2 . Power . | . . . . Propulsion 2 | . . 2 . Utility . | . . . . Weapon . | . . . . Parts Attached 36 | 6 8 11 11 Power 5 | 1 1 1 2 Engine 5 | 1 1 1 2 Core . | . . . . Reactor . | . . . . Propulsion 16 | 2 4 5 5 Treads . | . . . . Leg 9 | . 2 2 5 Wheel 4 | 2 2 . . Hover . | . . . . Flight 3 | . . 3 . Utility 4 | 1 1 2 . Device 1 | . 1 . . Storage 1 | 1 . . . Processor 1 | . . 1 . Hackware . | . . . . Protection 1 | . . 1 . Artifact . | . . . . Weapon 11 | 2 2 3 4 Energy Gun 5 | 2 1 . 2 Energy Cannon . | . . . . Ballistic Gun 2 | . . 2 . Ballistic Cannon 1 | . 1 . . Launcher 1 | . . . 1 Special Weapon 2 | . . 1 1 Impact Weapon . | . . . . Slashing Weapon . | . . . . Piercing Weapon . | . . . . Special Melee Weapon . | . . . . Unidentified Prototypes 1 | . . 1 . Parts Lost 17 | . 3 6 8 Power 3 | . . 1 2 Propulsion 7 | . 2 2 3 Utility 2 | . . 1 1 Weapon 5 | . 1 2 2 Highest Loss Streak 5 | . 2 3 5 To Critical Strikes . | . . . . Average Backups 6 | 3 6 6 7 Power 1 | . 1 1 1 Propulsion 2 | 2 3 1 1 Utility 1 | . . 2 2 Weapon 2 | . 1 1 2 Tool/Special . | . . . . Unused Backups 6 | . . 1 5 Power . | . . . . Propulsion 2 | . . 1 1 Utility 2 | . . . 2 Weapon 2 | . . . 2 Tool/Special . | . . . . Average Slot Usage (%) 87 | . 97 82 81 Engine 12 | . 14 11 10 Leg 15 | . 5 15 23 Wheel 7 | . 21 . . Flight 5 | . . 16 4 Device 5 | . 13 4 . Storage 12 | . 14 11 10 Processor 5 | . . 3 11 Energy Gun 15 | . 27 8 8 Ballistic Gun 2 | . . 3 3 Ballistic Cannon 1 | . . 5 . Launcher 1 | . . . 3 Special Weapon 1 | . . 1 3 Peak Build Rating 16 | 6 7 14 16 Average Rating 9 | 2 6 11 12 On Entrance 5 | . 6 7 9 Naked Turns . | . . . . Heaviest Build 18 | 12 15 15 18 Greatest Support 45 | 20 20 40 45 Greatest Overweight (x) 4 | 3 1 2 4 Average Overweight (x) . | 1 . . . Largest Inventory Capacity 8 | 8 8 8 8 Average Capacity 7 | 7 8 8 7 Most Carried 8 | 8 8 8 8 Average Carried 6 | 3 6 6 7 Final Capacity 8 | 8 8 8 5 Final Carried 8 | 4 8 8 5 Class Distribution -------------------- 69% | Mutant 30% | Scavenger-Mutant Dominant Class ---------------- Mutant | -10/Materials Mutant | -9/Materials Scavenger-Mutant | -9/Storage Resources | -11 -10 -9 -9 ----------- Run | Yrd Mat Mat Sto Matter Collected 882 | 238 101 218 325 Remotely . | . . . . Salvage Created 1739 | . 513 189 1037 Parts 127 | . 32 14 81 Haulers Intercepted . | . . . . Recyclers Shooed 1 | . . . 1 Parts Field Recycled . | . . . . Retrieved Matter . | . . . . Parts Self-Destructed . | . . . . Prevented . | . . . . Kills | -11 -10 -9 -9 ------- Run | Yrd Mat Mat Sto Combat Hostiles Destroyed 43 | . 12 7 24 Guns 24 | . 12 3 9 Cannons 4 | . . 4 . AOE 15 | . . . 15 Classes Destroyed 12 | . 2 2 8 Worker 6 | . . . 6 Builder 1 | . . . 1 Recycler 2 | . . . 2 Mechanic 1 | . . . 1 Operator 1 | . . . 1 Watcher 3 | . 1 . 2 Swarmer 7 | . . 3 4 Grunt 33 | . 12 2 19 Brawler 1 | . . . 1 Duelist 1 | . . . 1 Protector 1 | . . . 1 Sentry 7 | . . 2 5 Best Kill Streak 10 | . 2 4 10 Combat Bots Only 8 | . 2 4 8 Max Kills in Single Turn 5 | . 1 1 5 Gunslinging . | . . . . Exploded 3 | . . . 3 Melee . | . . . . Uniques/NPCs Destroyed . | . . . . Combat | -11 -10 -9 -9 -------- Run | Yrd Mat Mat Sto Hostile Shots Fired 242 | . 74 82 86 Missed 79 | . 24 25 30 Hits 163 | . 50 57 56 Projectile 163 | . 50 57 56 Critical Strikes 1 | . . . 1 Damage Taken 2224 | . 563 602 1059 Core 573 | . 168 81 324 Absorbed by Shields . | . . . . Core Remaining (%) 66 | 100 32 . . Volleys Fired 147 | . 51 30 66 Largest 2 | . 2 2 2 Hottest 130 | . 80 130 112 Shots Fired 220 | . 88 44 88 Gun 164 | . 88 21 55 Cannon 20 | . . 20 . Launcher 22 | . . . 22 Special 14 | . . 3 11 Kinetic 41 | . . 27 14 Thermal 140 | . 78 10 52 Explosive 22 | . . . 22 Electromagnetic 17 | . 10 7 . Robot Hit Streak 11 | . 11 11 9 Robot Miss Streak 3 | . 3 3 3 Penetration Max . | . . . . Secondary Targets 1 | . 1 . . Max Gunslinging Chain 1 | . 1 . . Shots Hit Robots 131 | . 61 24 46 Core Hits 108 | . 26 10 72 Critical Kills . | . . . . Critical Parts Destroyed 1 | . . . 1 Critical Strikes 4 | . . 2 2 Burn 1 | . . . 1 Destroy 1 | . . . 1 Blast 2 | . . 2 . Melee Attacks . | . . . . Impact . | . . . . Slashing . | . . . . Piercing . | . . . . Sneak Attacks . | . . . . Combat Hostiles . | . . . . Follow-up Attacks . | . . . . Damage Inflicted 4012 | . 727 420 2865 Guns 1435 | . 727 156 552 Cannons 227 | . . 227 . Explosions 2313 | . . . 2313 Melee . | . . . . Ramming 13 | . . 13 . Kinetic 349 | . . 240 109 Thermal 1113 | . 588 82 443 Explosive 2313 | . . . 2313 Electromagnetic 224 | . 139 85 . Impact . | . . . . Slashing . | . . . . Piercing . | . . . . Highest Corruption 2 | . . . 2 Average Corruption 2 | . . . 2 Corruption Purged . | . . . . Corruption Blocked . | . . . . Effects 8 | . . . 8 Message Errors 1 | . . . 1 Matter Fused 2 | . . . 2 Heat Flow Errors 3 | . . . 3 Data Loss (minor) 1 | . . . 1 Misfires 1 | . . . 1 Overload Shots . | . . . . Overflow Damage 56 | . . 5 51 Projectiles 5 | . . 5 . Explosions 51 | . . . 51 Melee . | . . . . Knockbacks 1 | . . 1 . Impact . | . . . . Kinetic 1 | . . 1 . Secondary . | . . . . Self-Inflicted Damage 342 | . . 6 336 Shots 11 | . . . 11 Rammed 2 | . . 2 . Targets Rammed 2 | . . 2 . Kicked . | . . . . Crushed . | . . . . Highest Temperature 231 | . 210 118 231 Average Temperature 54 | . 63 39 50 Received Heat Transfer 732 | . 306 174 252 Effects 1 | . 1 . . Interference 1 | . 1 . . Siege Activations . | . . . . Martial Activations . | . . . . Shielding Activations . | . . . . Robots Disrupted . | . . . . Combat Hostiles . | . . . . Robots Corrupted . | . . . . Combat Hostiles . | . . . . Parts Fried 1 | . 1 . . Impact Corruptions . | . . . . Robots Melted . | . . . . Combat Hostiles . | . . . . Parts Melted 2 | . 1 . 1 Heat Transferred 2689 | . 1325 175 1189 Parts Sabotaged . | . . . . Parts Stolen . | . . . . Parts Stripped . | . . . . Power Chain Reactions . | . . . . Alert | -11 -10 -9 -9 ------- Run | Yrd Mat Mat Sto Maximum Alert Level 2 | . . . 2 Low Security (%) 87 | 100 100 100 66 Level 1 9 | . . . 25 Level 2 2 | . . . 7 Level 3 . | . . . . Level 4 . | . . . . Level 5 . | . . . . High Security . | . . . . Max Security . | . . . . Peak Influence 630 | . 72 76 630 Initial 18 | . . 18 . Average 73 | . 21 27 155 Influence Increases 1654 | . 332 261 1061 Destroy 0b10 Robot/C 900 | . 240 140 520 Destroy 0b10 Robot/NC 75 | . 5 . 70 Destroy Leader 226 | . 52 50 124 Allied During Kill 25 | . . . 25 Successful Hack 54 | . 5 25 24 Select Force Hacks 80 | . 30 . 50 Disable Machine 45 | . . . 45 Destroy Structure 129 | . . 1 128 Partial Spotted 15 | . . 15 . Lose Combat Pursuer 105 | . . 30 75 Influence Decreases 1054 | . 287 306 461 Entered New Map 27 | . . 27 . Time Decay 729 | . 207 221 301 Lost Part 168 | . 30 58 80 Lost Ally 80 | . . . 80 Purge Threat 50 | . 50 . . Squads Dispatched 14 | . 5 5 4 Investigation 11 | . 4 5 2 Extermination . | . . . . Reinforcement 1 | . 1 . . Assault 2 | . . . 2 Garrison . | . . . . Intercept . | . . . . Searches Triggered . | . . . . Construction Impeded . | . . . . Haulers Reinforced . | . . . . Active Scanning Responses . | . . . . Cargo Convoy Interrupts . | . . . . Stealth | -11 -10 -9 -9 --------- Run | Yrd Mat Mat Sto Distress Signals 8 | . 3 2 3 Communications Jammed . | . . . . Distress Signals . | . . . . Times Spotted 76 | . 25 17 34 Peak Tracking Total 6 | . 3 6 5 Tactical Retreats 11 | . 6 2 3 Traps | -11 -10 -9 -9 ------- Run | Yrd Mat Mat Sto Traps Triggered 5 | . 2 1 2 Indirectly . | . . . . Trap Hack Attempts . | . . . . Triggered . | . . . . Disarmed . | . . . . Reprogrammed . | . . . . Reused . | . . . . Traps Extracted . | . . . . Installed . | . . . . Triggered . | . . . . Machines | -11 -10 -9 -9 ---------- Run | Yrd Mat Mat Sto Machines Disabled 3 | . . . 3 Max in Single Turn 1 | . . . 1 Machines Repaired . | . . . . Machines Dismantled . | . . . . Machines Sabotaged 1 | . . . 1 Overloaded Fab Kills . | . . . . Hacking | -11 -10 -9 -9 --------- Run | Yrd Mat Mat Sto Machines Accessed 13 | . 3 6 4 Terminals 11 | . 2 5 4 Fabricators . | . . . . Repair Stations . | . . . . Recycling Units 2 | . 1 1 . Scanalyzers . | . . . . Garrison Access . | . . . . Total Hacks 47 | . 8 24 15 Successful 27 | . 5 11 11 Failed 20 | . 3 13 4 Catastrophic 6 | . 2 2 2 Database Lockouts . | . . . . Manual 34 | . 6 17 11 Terminals 41 | . 6 20 15 Fabricators . | . . . . Repair Stations . | . . . . Recycling Units 6 | . 2 4 . Scanalyzers . | . . . . Garrison Access . | . . . . Terminal Hacks 11 | . 2 3 6 Record 3 | . . 1 2 Terminal Index 2 | . . . 2 Alert Level 1 | . . . 1 Unreport Threat 1 | . 1 . . Investigation Status 1 | . . . 1 Recall Investigation 3 | . 1 2 . Fabricator Hacks . | . . . . Repair Station Hacks . | . . . . Recycling Unit Hacks 1 | . . 1 . Retrieve Matter 1 | . . 1 . Scanalyzer . | . . . . Garrison Access Hacks . | . . . . Unauthorized Hacks 15 | . 3 7 5 Terminals 11 | . 2 4 5 Assimilate 1 | . . 1 . Botnet 8 | . 2 3 3 Operators 1 | . . . 1 Sabotage 1 | . . . 1 Fabricators . | . . . . Repair Stations . | . . . . Recycling Units 4 | . 1 3 . Monitor 1 | . . 1 . Reject 1 | . . 1 . Mask 1 | . . 1 . Tunnel 1 | . 1 . . Scanalyzers . | . . . . Garrison Access . | . . . . Data Cores Recovered . | . . . . Used . | . . . . Hacking Detections 9 | . 1 5 3 Full Trace Events 8 | . 1 5 2 Feedback Events . | . . . . Feedback Blocked . | . . . . Robot Schematics Acquired . | . . . . Robots Built . | . . . . Authchips . | . . . . Time . | . . . . Total Robot Build Rating . | . . . . Part Schematics Acquired . | . . . . Parts Built . | . . . . Authchips . | . . . . Time . | . . . . Total Part Build Rating . | . . . . Parts Repaired . | . . . . Time . | . . . . Parts Recycled . | . . . . Recycled Matter . | . . . . Retrieved Matter . | . . . . Retrieved Components . | . . . . Parts Scanalyzed . | . . . . Part Schematics Acquired . | . . . . Parts Damaged . | . . . . Bothacking | -11 -10 -9 -9 ------------ Run | Yrd Mat Mat Sto Used RIF Installer . | . . . . Robots Hacked . | . . . . Non-combat . | . . . . Combat . | . . . . Robot Hacks Applied . | . . . . Relay Couplers Released . | . . . . Fabnet Peak Effective % . | . . . . Robots Rewired . | . . . . Allies Hacked . | . . . . Hacks Repelled . | . . . . Allies | -11 -10 -9 -9 -------- Run | Yrd Mat Mat Sto Total Allies 12 | . . . 12 Largest Group 10 | . . . 10 Highest-Rated Group 88 | . . . 88 Highest-Rated Ally 31 | . . . 31 Total Orders . | . . . . Ally Attacks 32 | . . . 32 Total Damage 403 | . . . 403 Kills 4 | . . . 4 Allies Corrupted . | . . . . Allies Melted . | . . . . Intel | -11 -10 -9 -9 ------- Run | Yrd Mat Mat Sto Active Infowar (turns) 1850 | . 696 344 810 Optics 979 | . . 169 810 ECM 871 | . 696 175 . Robot Analysis Total . | . . . . Derelict Logs Recovered . | . . . . Drone Launches . | . . . . Drone Recoveries . | . . . . Exploration | -11 -10 -9 -9 ------------- Run | Yrd Mat Mat Sto Turns Passed 2109 | 94 724 481 810 Spaces Moved 1268 | 57 428 392 391 Core 36 | 31 . . 5 Treads . | . . . . Legs 476 | . 111 115 250 Wheels 343 | 26 317 . . Hover . | . . . . Flight 413 | . . 277 136 Fastest Speed 34 | 50 80 34 110 Average Speed 108 | 137 91 88 142 Slowest Speed 250 | 200 120 190 250 Overloaded Moves . | . . . . Propulsion Burnouts . | . . . . Robots Hopped . | . . . . Potential Cave-ins . | . . . . Cave-ins Triggered . | . . . . Exploration Rate (%) 35 | 4 47 28 61 Regions Visited 3 Branch Regions 1 Pre-discovered Areas 1 | . 1 . . Known Exits Taken . | . . . . Unknown Exits Taken 3 | 1 1 1 . Scrap Searched . | . . . . Spaces Dug 11 | . . . 11 Terrain Destroyed 156 | . . 1 155 Melee . | . . . . Projectile 12 | . . 1 11 AOE 144 | . . . 144 Terrain Rammed . | . . . . Walls Destroyed . | . . . . Machines Disabled . | . . . . Actions | -11 -10 -9 -9 --------- Run | Yrd Mat Mat Sto Total 1751 | 72 670 476 533 Wait 238 | . 171 20 47 Move 1265 | 56 427 391 391 Hop . | . . . . Pick Up 36 | 10 10 9 7 Fast Attach 5 | . 1 1 3 Attach 24 | 6 4 9 5 Detach 2 | . . 2 . Swap 16 | . 3 5 8 Drop 14 | . 3 7 4 Fire 147 | . 51 30 66 Melee . | . . . . Ram 2 | . . 2 . Kick . | . . . . Crush . | . . . . Escape Stasis 2 | . . . 2 Rewire . | . . . . Trap . | . . . . Miscellaneous . | . . . . Route ------- -11/Scrapyard -10/Materials -9/Materials -9/Storage History --------- Turn | Location | Event 13 | -11/Scrapyard | Discovered new exit (range 16) 95 | -11/Scrapyard | Entered Materials 315 | -10/Materials | Build established: Mutant 617 | -10/Materials | Core integrity fell below 50% 700 | -10/Materials | Discovered new exit (range 6) 819 | -10/Materials | Entered another Materials area 819 | -9/Materials | Evolved 2 slots: Propulsion x2 1115 | -9/Materials | Lost 3 parts (1n1u1w) 1272 | -9/Materials | Discovered new exit (range 8) 1300 | -9/Materials | Entered Storage 1331 | -9/Storage | Lost 3 parts (1p1n1w) 1582 | -9/Storage | Core integrity fell below 50% 1696 | -9/Storage | Met a pair of Derelict thieves 1875 | -9/Storage | Destroyed 8 combat bots 1941 | -9/Storage | Assisted by bots powering up and referring to "LRC-V3" 1948 | -9/Storage | Core integrity fell below 20% 1957 | -9/Storage | Build established: Scavenger-Mutant 1973 | -9/Storage | Murdered 5 allies 2073 | -9/Storage | Lost 4 allies 2110 | -9/Storage | Destroyed self with Mini Grenade Launcher Last Messages --------------- Acquired 13 matter. U-05 Engineer lays Concrete. K-01 Serf collects debris. Terminal disabled. The unstable cave ceiling collapses. U-05 Engineer builds a Wall. W-16 Scout destroyed. U-05 Engineer lays Concrete. U-05 Engineer builds a Wall. Destroyed Aluminum Leg. Aluminum Leg destroyed. Destroyed Aluminum Leg. Sml. Storage Unit destroyed. Destroyed Sml. Storage Unit. Aluminum Leg destroyed. G-34 Mercenary destroyed. Imp. Ion Engine destroyed. Destroyed Imp. Ion Engine. Carbon-fiber Leg destroyed. Destroyed Carbon-fiber Leg. Map ----- +----------------------------------------------------+ | [*=#! ! ## [[ #?????????????????? | | %!#" ! ## [[ #?????????????????? | | !%## ## #?????????????????? | | =[## ## #?????????????????? | | !## = ## #?????????????????? | | ##### ## #?????????????????? | | ##??### %= ############?#???????????????? | | #####%# * ! ### """"" ?=??????????????? | | # == # ## """"" ???????????????? | | # ## """"" ??????????????? | | #""" # ## ???????????????? | | #""" %[ ! ???????####????????? | | #"""%=*= #% #############+### #???????? | | #""" %%= * ! #???????? | | #""" *= #???????? | | # "" #???????? | | # ## == "" #???????? | | # ## ## # %[ "T #???????? | | # ##+##### "" #???????? | | ########## "" #???????? | | ?????????# """" [# #???????? | | ?????????# "??"" = [ #??? # | | ?????????# "???"" = * # # | | ?????????# "????" a ??? | | ?????????# ????" #???????? | | ?????????# ????" # # @ ##???????? | | ?????????# ? ### [ #????????? | | ?????????###########?## #???????? | | ?????????????????????# [ #???????? | | ?????????????????????# [[ #?????? | | ?????????????????????## [ #?????? | | ?????????????????????? #?????? | | ??????????????????????" # a #?????? | | ?????????????????????"" #g #?????? | | ?????????????????????"" # ! #?????? | | ????????????????????""" ? ! ####?????? | | ??????????????????????" ? #????????? | | ?????????????????????? ? +????????? | | ?????????????????????? ? ! #????????? | | ??????????????????????##? #????????? | | ????????????????????????? #????????? | | ????????????????????????? ???????????? | | ?????????????????????????#+#?????????????? | | ?????????????????????????????????????????? | | ?????????????????????????????????????????? | | ?????????????????????????????????????????? | | ?????????????????????????????????????????? | | ?????????????????????????????????????????? | | ?????????????????????????????????????????? | | ?????????????????????????????????????????? | +----------------------------------------------------+ Best States ------------- Heat Dissipation 28 Energy Generation 12 Energy Capacity 265 Matter Stores 300 Matter Capacity 300 Sight Range 18 Terrain Scan Density 10 ECM Strength 1 Armor Coverage 150 Evasion (%) 63 Item Schematics ----------------- None Robot Schematics ------------------ None Fabricated ------------ Nothing Repaired ---------- Nothing Alien Tech Used ----------------- None Achievements -------------- Brute Force root@ Challenges ------------ None Game ------ Seed ArmageddonSegregatorSpoofer Manual? 0 Play Time 00:33:06 Cumulative 33.9 hours Start 2025.05.18 @ 18:34:24 End 2025.05.18 @ 20:37:01 Sessions 3 Manual Loads 0 Difficulty Rogue Special Mode None Game No. 52 Rogue 50 Adventurer 0 Explorer 2 Win Type - Total 0 Types 0/0/0/0/0/0/0/0/0/0 Lore% 14 Gallery% 25 Achievement% 26 Wizard Run 0 Options --------- Layout 1 ASCII 0 Keyboard 0 Movement Mouse Keybinds 0 Fullscreen 1 Font 24/Smallcaps Map View 50x35 Zoom Use 0% Tactical HUD 0 Map Filters NONE Filters NONE Steam 1 RUN: ca9e9252-deed-4c2e-9adc-93732391dd2c